fUSD/lending_fUSD_20240209
["ID","MTS","AMOUNT","RATE_DAILY","PERIOD"]
[313597531,1707443458328,287.06966469,0.000224,2]
[313597532,1707443459278,156.34361904,0.000224,2]
[313597533,1707443463774,210.0,0.000224,2]
[313597534,1707443473385,156.01496361,0.00022,2]
[313597535,1707443475006,415.72006993,0.00022696,5]
[313597536,1707443475030,580.6720089,0.00022696,5]
[313597537,1707443481002,358.9312,0.00022493,2]
[313597538,1707443492733,345.24151141,0.0002249,2]
[313597542,1707443543786,4205.2142,0.00022491,2]
[313597543,1707443572601,1551.57,0.000225,2]
[313597544,1707443575388,693.9845,0.00022493,2]
[313597545,1707443593469,1468.241,0.00022491,2]
[313597546,1707443628259,199.29379335,0.00022357,4]
[313597547,1707443628349,312.25071371,0.0002168,2]
[313597548,1707443633546,250.0,0.00021627,2]
[313597549,1707443634083,313.18,0.00021632,2]
[313597550,1707443642081,155.14,0.00021794,2]
[313597551,1707443642495,155.14,0.00022021,2]
[313597552,1707443642734,155.14,0.00022248,2]
[313597553,1707443643144,155.14,0.00022475,2]
[313597554,1707443646158,507.79,0.00021632,2]
[313597555,1707443648301,164.69927651,0.00020325,2]
[313597556,1707443656164,840.0,0.00021632,2]
[313597557,1707443740705,268.97408944,0.00021632,2]
[313597558,1707443754735,267.77801039,0.00021632,2]
[313597559,1707443764005,406.98,0.00019714,2]
[313597560,1707443764922,406.98,0.00021978,2]
[313597561,1707443774818,267.77801039,0.00021632,2]
[313597562,1707443777317,1665.47609181,0.00022491,2]
[313597563,1707443794695,245.41244981,0.00021632,2]
[313597564,1707443897299,246.02661237,0.000229,6]
[313597565,1707443898790,1000.0,0.00022485,2]
[313597566,1707443931253,2000.0,0.000225,2]
[313597567,1707443955502,10573.68718783,0.00016937,2]
[313597568,1707443974902,7049.12479189,0.00016937,2]
[313597569,1707443992895,5874.27065991,0.00016937,2]
[313597570,1707444004667,165.07073332,0.000229,6]
[313597571,1707444012915,3060.49501381,0.00016937,2]
[313597572,1707444023957,4237.762,0.00022363,2]
[313597573,1707444027178,529.265,0.00022363,2]
[313597574,1707444029125,2285.0,0.00022363,2]
[313597575,1707444036873,2884.277,0.00022363,2]
[313597576,1707444036910,3060.49501381,0.00016937,2]
[313597577,1707444043074,173.73809907,0.00022476,2]
[313597578,1707444044166,1041.451,0.00022363,2]
[313597579,1707444047925,173.738099,0.00022498,2]
[313597580,1707444052518,245000.0,0.00022485,2]
[313597581,1707444061261,3060.49501381,0.00016937,2]
[313597582,1707444076909,3060.49501381,0.00016937,2]
[313597583,1707444080149,1903.8112,0.00022485,2]
[313597584,1707444086479,250.0,0.00021632,2]
[313597585,1707444096908,3060.49501381,0.00016937,2]
[313597586,1707444100707,328.0,0.00021606,2]
[313597587,1707444118912,3060.49501381,0.00016937,2]
[313597588,1707444135224,3060.49501381,0.00016937,2]
[313597589,1707444146591,155.14,0.00021768,2]
[313597590,1707444151609,423.15,0.00021606,2]
[313597591,1707444154917,3060.49501381,0.00016937,2]
[313597592,1707444176919,3060.49501381,0.00016937,2]
[313597593,1707444192923,3060.49501381,0.00016937,2]
[313597594,1707444208922,3060.49501381,0.00016937,2]
[313597595,1707444229128,1580.17880752,0.00016937,2]
[313597596,1707444248237,144277.7087,0.00022485,2]
[313597597,1707444322106,302.08632251,0.00022485,2]
[313597598,1707444337882,155.0,0.00022485,2]
[313597599,1707444341614,499.22204378,0.00022357,2]
[313597600,1707444347490,246.19,0.00021606,2]
[313597601,1707444356424,377.81,0.00019688,2]
[313597602,1707444356700,377.81,0.00021952,2]
[313597603,1707444363872,258.30182661,0.00022485,2]
[313597604,1707444415065,2667.0,0.000225,2]
[313597605,1707444424547,439.746,0.00022484,2]
[313597606,1707444450090,-213.21550899,0.00022513,2]
[313597607,1707444450110,-216.60567526,0.00022513,2]
[313597608,1707444450132,-155.0,0.00022514,2]
[313597609,1707444450150,-640.0988406,0.00022515,2]
[313597610,1707444450170,-173.738099,0.00022521,2]
[313597611,1707444450191,-1665.47609178,0.00022528,2]
[313597612,1707444450213,-173.738099,0.00022543,2]
[313597613,1707444450234,-302.08632248,0.00022544,2]
[313597614,1707444450254,-173.738099,0.00022565,2]
[313597615,1707444450505,-1127.7419513,0.00022565,2]
[313597616,1707444453722,208.0,0.00021906,2]
[313597617,1707444491300,342.37108758,0.00022475,2]
[313597618,1707444547291,628.2748,0.00022483,2]
[313597619,1707444553104,5765.6742,0.00022483,2]
[313597620,1707444570347,3940.0,0.00022365,2]
[313597621,1707444593581,1000.0,0.00022483,2]
[313597622,1707444593969,250.0,0.00021594,2]
[313597623,1707444598455,164.29,0.00021594,10]
[313597628,1707444608209,6732.7777,0.00022483,2]
[313597629,1707444610594,155.14,0.00021756,2]
[313597639,1707444631438,-537.73414048,0.00022565,2]
[313597641,1707444631449,-722.69,0.00022566,2]
[313597643,1707444631459,-722.78,0.00022566,2]
[313597645,1707444631468,-564.20489533,0.00022566,2]
[313597647,1707444631481,-161.33510467,0.00022566,2]
[313597648,1707444631490,-138.50489533,0.00022567,2]
[313597649,1707444631653,-599.92510467,0.00022567,2]
[313597650,1707444631663,-81.64031,0.00022569,2]
[313597651,1707444631707,-655.00969,0.00022569,2]
[313597652,1707444631716,-724.11,0.00022571,2]
[313597653,1707444631725,-150.0,0.00022574,2]
[313597654,1707444631734,-150.0,0.00022574,2]
[313597655,1707444631743,-709.6,0.00022575,2]
[313597656,1707444631752,-34230.49838155,0.00022575,2]
[313597657,1707444631762,-3741.12,0.00022575,2]
[313597658,1707444631771,-729.01,0.00022576,2]
[313597659,1707444631780,-155.0002382,0.00022581,2]
[313597660,1707444631789,-214.4886482,0.00022581,2]
[313597661,1707444631798,-237.28595331,0.00022581,2]
[313597662,1707444631807,-642.32674589,0.00022582,2]
[313597663,1707444631816,-192.68292529,0.00022583,2]
[313597665,1707444631825,-1185.39391128,0.00022583,2]
[313597667,1707444631834,-406298.18460076,0.00022583,2]
[313597669,1707444631845,-323.26186872,0.00022583,2]
[313597686,1707444637513,-26504.97516982,0.00022583,2]
[313597687,1707444637569,-8447.3889702,0.00022583,2]
[313597688,1707444637762,-1076.31462604,0.00022583,2]
[313597689,1707444637779,-492.39518427,0.00022583,2]
[313597690,1707444637791,-278.83688294,0.00022583,2]
[313597691,1707444637802,-2785.28402142,0.00022583,2]
[313597692,1707444637834,-4332.0,0.00022583,2]
[313597693,1707444637995,-317.7,0.00022566,2]
[313597703,1707444641110,-334.90507762,0.00022566,2]
[313597715,1707444642807,-62.03492238,0.00022566,2]
[313597716,1707444642817,-2972.39551784,0.00022583,2]
[313597717,1707444642828,-1487.01374093,0.00022583,2]
[313597718,1707444642846,-2124.38043081,0.00022583,2]
[313597726,1707444645649,-14548.8755808,0.00022582,2]
[313597727,1707444645662,-1943.66,0.00022582,2]
[313597743,1707444649126,4696.29109432,0.00022356,2]
[313597744,1707444669413,737.6,0.00021756,2]
[313597745,1707444677830,445.17,0.00021606,2]
[313597746,1707444696406,9505.4709,0.00022483,2]
[313597748,1707444723100,39430.2735,0.00022483,2]
[313597754,1707444727899,150.0,0.00022298,2]
[313597755,1707444747981,3623.6184,0.00022483,2]
[313597756,1707444827794,226.56474186,0.0002249,2]
[313597757,1707444930910,100000.0,0.0002249,2]
[313597758,1707444950555,340.02,0.00019691,2]
[313597759,1707444950767,340.02,0.00021955,2]
[313597760,1707445000880,1335.3442,0.0002249,2]
[313597761,1707445005562,450.7539,0.0002249,2]
[313597763,1707445109367,198.24414918,0.0002249,2]
[313597764,1707445110445,409.92,0.00021587,2]
[313597765,1707445117288,370.97,0.00021747,2]
[313597766,1707445123710,153.29832276,0.00022482,2]
[313597767,1707445236188,196.95,0.00021605,2]
[313597768,1707445274322,164.29,0.00021605,10]
[313597770,1707445338006,83.47942806,0.0002249,2]
[313597771,1707445338027,344.29137194,0.0002249,2]
[313597772,1707445395308,173.46363048,0.0002249,2]
[313597773,1707445471368,306.01,0.00019669,2]
[313597774,1707445471573,306.01,0.00021933,2]
[313597775,1707445483166,254.8434,0.0002249,2]
[313597776,1707445516030,931.0417,0.0002249,2]
[313597777,1707445533755,208.0,0.00021627,2]
[313597778,1707445556454,672.06,0.0002161,2]
[313597779,1707445560689,999.8928,0.0002249,2]
[313597780,1707445563066,309.14,0.00021617,2]
[313597781,1707445582755,157.15,0.00021801,2]
[313597782,1707445590216,167.87,0.00022302,2]
[313597783,1707445650089,-206.375397,0.00022577,2]
[313597784,1707445650112,-150.0,0.00022581,2]
[313597785,1707445650134,-727.82,0.00022582,2]
[313597786,1707445650155,-735.62,0.00022582,2]
[313597787,1707445650178,-738.27,0.00022582,2]
[313597788,1707445650198,-729.11,0.00022582,2]
[313597789,1707445650218,-731.59,0.00022582,2]
[313597790,1707445650238,-627.40682813,0.00022582,2]
[313597791,1707445650260,-835.3474789,0.00022583,2]
[313597792,1707445650280,-21.77032925,0.00022587,2]
[313597793,1707445699987,153.29832264,0.00022489,2]
[313597821,1707445834958,-153.29832264,0.00022516,2]
[313597822,1707445834968,-687.16306878,0.00022542,2]
[313597823,1707445834981,-64.83693122,0.00022542,2]
[313597824,1707445834990,-153.29832264,0.00022544,2]
[313597825,1707445834999,-151.78067667,0.00022545,2]
[313597826,1707445835009,-153.29832264,0.00022571,2]
[313597827,1707445835018,-689.76967075,0.00022587,2]
[313597828,1707445835027,-247.31698486,0.00022588,2]
[313597829,1707445835037,-708.19252327,0.00022588,2]
[313597830,1707445835046,-300.0,0.00022588,2]
[313597831,1707445835055,-150.0,0.00022588,2]
[313597832,1707445835065,-150.0,0.00022588,2]
[313597833,1707445835074,-179.14633606,0.00022589,2]
[313597834,1707445835084,-725.87,0.00022589,2]
[313597835,1707445835093,-155.3187264,0.00022589,2]
[313597836,1707445835102,-1268.186359,0.00022589,2]
[313597837,1707445835112,-155.20911311,0.00022589,2]
[313597838,1707445835121,-223.86653187,0.00022589,2]
[313597839,1707445835130,-499.99,0.00022589,2]
[313597840,1707445835140,-714.96,0.0002259,2]
[313597841,1707445835150,-716.5,0.0002259,2]
[313597842,1707445835159,-612.04219186,0.0002259,2]
[313597843,1707445835178,-101.48780814,0.0002259,2]
[313597844,1707445835188,-538.43136001,0.0002259,2]
[313597845,1707445835208,-182.87863999,0.0002259,2]
[313597846,1707445835218,-356.00136001,0.00022591,2]
[313597847,1707445835278,-361.73863999,0.00022591,2]
[313597848,1707445835288,-717.29,0.00022591,2]
[313597849,1707445835297,-734.19,0.00022591,2]
[313597850,1707445835307,-151.78067667,0.00022596,2]
[313597851,1707445835316,-153.29832264,0.00022599,2]
[313597852,1707445835326,-153.29832264,0.00022626,2]
[313597853,1707445835335,-150.0,0.00022631,2]
[313597854,1707445835345,-150.0,0.00022638,2]
[313597855,1707445835355,-233.84117415,0.0002264,2]
[313597856,1707445835365,-150.0,0.00022644,2]
[313597857,1707445835374,-123.78072059,0.00022646,2]
[313597858,1707445835410,-27.99995608,0.00022646,2]
[313597859,1707445835420,-660.93442972,0.00022648,2]
[313597860,1707445835434,-1174.37054762,0.00022648,2]
[313597882,1707445837668,-21402.15153305,0.00022648,2]
[313597886,1707445837829,-52102.57930465,0.00022648,2]
[313597887,1707445837891,-381.89507194,0.00022648,2]
[313597888,1707445837905,-478.2324,0.00022648,2]
[313597889,1707445837916,-293.536,0.00022648,2]
[313597890,1707445838157,-200134.37338723,0.00022648,2]
[313597929,1707445843755,-910.17705258,0.00022648,2]
[313597930,1707445843767,-353.89329981,0.00022648,2]
[313597931,1707445843778,-4423.3,0.00022648,2]
[313597932,1707445843799,-1488.91443361,0.00022648,2]
[313597933,1707445843810,-568.52842727,0.00022648,2]
[313597934,1707445843822,-1484.05186003,0.00022648,2]
[313597935,1707445843833,-991.93470308,0.00022648,2]
[313597936,1707445843846,-2474.95693013,0.00022648,2]
[313597937,1707445843857,-153.29832264,0.00022653,2]
[313597938,1707445843866,-200.0,0.00022664,2]
[313597939,1707445843875,-800.0,0.00022664,2]
[313597940,1707445843884,-153.29832264,0.00022681,2]
[313597941,1707445843896,-27556.09177443,0.00022681,2]
[313597942,1707445843906,-423.07335202,0.00022684,2]
[313597943,1707445843915,-196.95,0.00022685,2]
[313597944,1707445843924,-479.81986814,0.0002269,2]
[313597945,1707445843934,-17598.28059103,0.00022691,2]
[313597946,1707445843948,-300.25019249,0.00022691,2]
[313597947,1707445843997,-1982.98337507,0.00022691,2]
[313597948,1707445844011,-1874.46246498,0.00022691,2]
[313597949,1707445844036,-7153.49293194,0.00022691,2]
[313597950,1707445844049,-20680.96500001,0.00022691,2]
[313597952,1707445844065,-4927.89073133,0.00022691,2]
[313597953,1707445844077,-31165.60850922,0.00022691,2]
[313597954,1707445844089,-18187.16895092,0.00022691,2]
[313597955,1707445844100,-385.56700025,0.00022691,2]
[313597956,1707445844111,-727.6,0.00022695,2]
[313597957,1707445844120,-157.14068024,0.00022696,2]
[313597958,1707445844131,-2886.59116861,0.00022696,2]
[313597959,1707445844143,-170.19592816,0.00022696,2]
[313597960,1707445844152,-209.84480442,0.00022696,2]
[313597961,1707445844163,-469.00046766,0.00022696,2]
[313597962,1707445844209,-960.94494096,0.00022696,2]
[313597965,1707445844336,-424.5191321,0.00022696,2]
[313597966,1707445844480,-728.15277015,0.00022696,2]
[313597967,1707445844491,-4499.13545057,0.00022696,2]
[313597968,1707445844507,-464.22122074,0.00022696,2]
[313597969,1707445844520,-281.58631847,0.00022696,2]
[313597982,1707445848441,-10422.65924643,0.00022647,2]
[313597983,1707445848454,-1919.02271161,0.00022647,2]
[313597984,1707445848476,-4575.3021816,0.00022647,2]
[313597985,1707445848485,-220.00138895,0.00022647,2]
[313597986,1707445848495,-2795.5151573,0.00022696,2]
[313597987,1707445848504,-2850.43905595,0.00022696,2]
[313597988,1707445848514,-732.73,0.00022697,2]
[313597989,1707445848524,-151.78067667,0.00022697,2]
[313597990,1707445848535,-153.29832264,0.00022708,2]
[313597991,1707445848545,-150.0,0.00022716,2]
[313597992,1707445848555,-150.0,0.00022725,2]
[313597993,1707445848565,-150.0,0.00022729,2]
[313597994,1707445848575,-150.0,0.0002273,2]
[313597995,1707445848584,-150.0,0.00022731,2]
[313597996,1707445848593,-150.0,0.00022733,2]
[313597997,1707445848603,-153.29832264,0.00022736,2]
[313597998,1707445848612,-150.0,0.00022741,2]
[313597999,1707445848621,-150.0,0.00022745,2]
[313598000,1707445848631,-151.78067667,0.00022748,2]
[313598001,1707445848641,-150.0,0.00022748,2]
[313598002,1707445848650,-150.0,0.00022753,2]
[313598003,1707445848660,-150.0,0.00022762,2]
[313598004,1707445848670,-150.0,0.00022763,2]
[313598005,1707445848680,-153.29832264,0.00022763,2]
[313598006,1707445848690,-150.0,0.00022764,2]
[313598007,1707445848700,-150.0,0.00022764,2]
[313598008,1707445848710,-150.0,0.00022775,2]
[313598009,1707445848719,-150.0,0.00022776,2]
[313598010,1707445848729,-150.0,0.00022777,2]
[313598011,1707445848739,-150.0,0.00022788,2]
[313598012,1707445848748,-153.29832264,0.0002279,2]
[313598013,1707445848758,-150.0,0.00022791,2]
[313598014,1707445848767,-150.0,0.00022791,2]
[313598015,1707445848776,-248.76299584,0.00022797,2]
[313598016,1707445848786,-388.11524746,0.00022798,2]
[313598017,1707445848796,-151.78067667,0.00022799,2]
[313598018,1707445848806,-150.0,0.00022811,2]
[313598019,1707445848816,-800.0,0.00022811,2]
[313598020,1707445848825,-200.0,0.00022812,2]
[313598021,1707445848835,-500.0,0.00022813,2]
[313598022,1707445848845,-500.0,0.00022813,2]
[313598023,1707445848855,-200.0,0.00022813,2]
[313598024,1707445848865,-500.0,0.00022814,2]
[313598026,1707445848874,-500.0,0.00022815,2]
[313598028,1707445848883,-200.0,0.00022815,2]
[313598030,1707445848892,-500.0,0.00022815,2]
[313598032,1707445848901,-500.0,0.00022815,2]
[313598034,1707445848910,-200.0,0.00022815,2]
[313598036,1707445848920,-500.0,0.00022815,2]
[313598037,1707445848929,-500.0,0.00022815,2]
[313598039,1707445848939,-200.0,0.00022815,2]
[313598040,1707445848948,-500.0,0.00022816,2]
[313598041,1707445848958,-150.0,0.00022817,2]
[313598042,1707445848967,-153.29832264,0.00022818,2]
[313598043,1707445848976,-150.0,0.0002282,2]
[313598044,1707445848986,-150.0,0.00022828,2]
[313598045,1707445848995,-150.0,0.00022828,2]
[313598046,1707445849004,-150.0,0.0002283,2]
[313598047,1707445849015,-150.0,0.00022839,2]
[313598048,1707445849024,-150.0,0.00022842,2]
[313598049,1707445849033,-153.29832264,0.00022845,2]
[313598050,1707445849043,-151.78067667,0.00022849,2]
[313598051,1707445849052,-150.0,0.00022852,2]
[313598052,1707445849062,-969.53380279,0.0002286,2]
[313598053,1707445849071,-152.79497375,0.00022863,2]
[313598054,1707445849080,-150.0,0.00022864,2]
[313598055,1707445849090,-150.0,0.00022869,2]
[313598056,1707445849100,-150.0,0.0002287,2]
[313598057,1707445849109,-150.0,0.0002287,2]
[313598058,1707445849119,-153.29832264,0.00022873,2]
[313598059,1707445849129,-150.0,0.00022883,2]
[313598060,1707445849139,-150.0,0.00022883,2]
[313598061,1707445849148,-150.0,0.00022888,2]
[313598062,1707445849157,-1236.517,0.00022893,2]
[313598063,1707445849167,-203.68726901,0.00022893,2]
[313598064,1707445849177,-150.0,0.00022895,2]
[313598065,1707445849186,-715.26,0.00022898,2]
[313598066,1707445849196,-735.0,0.00022898,2]
[313598067,1707445849205,-350.68310121,0.000229,2]
[313598068,1707445849215,-2000.0,0.000229,2]
[313598069,1707445849225,-200.0,0.000229,2]
[313598070,1707445849234,-14989.28482602,0.000229,2]
[313598071,1707445849243,-2000.0,0.000229,2]
[313598072,1707445849253,-200.0,0.000229,2]
[313598073,1707445849262,-5000.0,0.000229,2]
[313598074,1707445849271,-2000.0,0.000229,2]
[313598075,1707445849281,-200.0,0.000229,2]
[313598076,1707445849290,-151.78067667,0.000229,2]
[313598077,1707445849300,-153.29832264,0.000229,2]
[313598078,1707445849309,-797.18607729,0.000229,2]
[313598079,1707445849319,-716.90288966,0.000229,2]
[313598080,1707445849329,-298.63698828,0.000229,2]
[313598081,1707445849338,-245.54806268,0.000229,2]
[313598082,1707445849348,-150.0,0.00022922,2]
[313598083,1707445849359,-150.0,0.00022925,2]
[313598084,1707445849368,-237.47,0.00022928,2]
[313598085,1707445849378,-505.542,0.00022928,2]
[313598086,1707445849388,-1945.0,0.00022928,2]
[313598087,1707445849398,-1007.458,0.00022928,2]
[313598088,1707445849408,-430.783,0.00022928,2]
[313598089,1707445849418,-858.0,0.00022928,2]
[313598090,1707445849427,-190.815,0.00022928,2]
[313598091,1707445849437,-381.736,0.00022928,2]
[313598092,1707445849447,-1154.347,0.00022928,2]
[313598093,1707445849457,-716.047,0.00022928,2]
[313598094,1707445849469,-344.376,0.00022928,2]
[313598095,1707445849479,-7402.0,0.00022928,2]
[313598096,1707445849489,-396.0,0.00022928,2]
[313598097,1707445849498,-197.009,0.00022928,2]
[313598098,1707445849509,-240.74259667,0.00022928,2]
[313598099,1707445849531,-7909.25740333,0.00022928,2]
[313598100,1707445849541,-455.288,0.00022928,2]
[313598101,1707445849550,-2938.928,0.00022928,2]
[313598102,1707445849559,-19925.939,0.00022928,2]
[313598103,1707445849568,-930.381,0.00022928,2]
[313598104,1707445849578,-2335.604,0.00022928,2]
[313598105,1707445849587,-956.493,0.00022928,2]
[313598106,1707445849597,-1878.092,0.00022928,2]
[313598107,1707445849606,-853.0,0.00022928,2]
[313598108,1707445849615,-200.448,0.00022928,2]
[313598109,1707445849625,-1252.0,0.00022928,2]
[313598110,1707445849635,-157.15,0.00022937,2]
[313598111,1707445849644,-150.0,0.00022938,2]
[313598112,1707445849654,-150.0,0.00022947,2]
[313598113,1707445849664,-150.0,0.00022956,2]
[313598114,1707445849674,-150.0,0.00022957,2]
[313598115,1707445849683,-151.179,0.00022969,2]
[313598116,1707445849693,-150.0,0.00022969,2]
[313598117,1707445849702,-200.0,0.00022969,2]
[313598118,1707445849712,-205.425,0.00022969,2]
[313598119,1707445849721,-150.894,0.00022969,2]
[313598120,1707445849731,-181.541,0.00022969,2]
[313598121,1707445849740,-247.832,0.00022969,2]
[313598122,1707445849750,-150.0,0.00022972,2]
[313598123,1707445849760,-150.0,0.00022975,2]
[313598124,1707445849770,-152.8103625,0.00022986,2]
[313598125,1707445849780,-221.13755376,0.00022986,2]
[313598126,1707445849790,-150.0,0.00022991,2]
[313598127,1707445849799,-150.0,0.00022993,2]
[313598128,1707445849809,-150.0,0.00022994,2]
[313598129,1707445849819,-212.67476727,0.00022996,2]
[313598130,1707445849829,-155.80469627,0.00022996,2]
[313598131,1707445849840,-155.91772099,0.00022996,2]
[313598132,1707445849849,-417.42023263,0.00022996,2]
[313598133,1707445849859,-321.96726608,0.00022996,2]
[313598134,1707445849869,-162.94019071,0.00022996,2]
[313598135,1707445849878,-156.0,0.00022997,2]
[313598136,1707445849888,-1973.61266095,0.00022997,2]
[313598137,1707445849897,-150.0,0.00022997,2]
[313598138,1707445849907,-195.73557477,0.00022998,2]
[313598139,1707445849919,-801.76488882,0.00022998,2]
[313598140,1707445849930,-517.1691244,0.00022998,2]
[313598141,1707445849938,-1201.2251424,0.00022998,2]
[313598142,1707445849947,-629.87309155,0.00022999,2]
[313598143,1707445849957,-178.70456415,0.00022999,2]
[313598144,1707445849966,-236.51792874,0.00022999,2]
[313598145,1707445849975,-150.0,0.00022999,2]
[313598146,1707445849985,-150.0,0.00022999,2]
[313598147,1707445849995,-150.0,0.00022999,2]
[313598148,1707445850005,-150.0,0.00022999,2]
[313598149,1707445850016,-150.0,0.00022999,2]
[313598150,1707445850026,-150.0,0.00022999,2]
[313598151,1707445850036,-150.0,0.00022999,2]
[313598152,1707445850046,-150.0,0.00022999,2]
[313598153,1707445850056,-150.0,0.00022999,2]
[313598154,1707445850066,-150.0,0.00022999,2]
[313598155,1707445850076,-150.0,0.00022999,2]
[313598156,1707445850086,-150.0,0.00022999,2]
[313598157,1707445850096,-150.0,0.00022999,2]
[313598158,1707445850107,-150.0,0.00022999,2]
[313598159,1707445850116,-150.0,0.00022999,2]
[313598160,1707445850126,-150.0,0.00022999,2]
[313598161,1707445850136,-150.0,0.00022999,2]
[313598162,1707445850145,-150.0,0.00022999,2]
[313598163,1707445850155,-150.0,0.00022999,2]
[313598164,1707445850165,-150.0,0.00022999,2]
[313598165,1707445850174,-150.0,0.00022999,2]
[313598166,1707445850183,-178.47230679,0.00022999,2]
[313598167,1707445850193,-150.0,0.00022999,2]
[313598168,1707445850202,-208782.92270773,0.00023,2]
[313598169,1707445850353,-393.42246567,0.00023,2]
[313598170,1707445850418,-5990.21969647,0.00022548,2]
[313598171,1707445852211,155.0,0.00022489,2]
[313598172,1707445854459,1006.81402703,0.00020698,2]
[313598173,1707445854592,827.10206457,0.00022489,2]
[313598174,1707445855212,156.27719266,0.00022489,2]
[313598175,1707445856605,162.38826991,0.00020698,2]
[313598176,1707445859679,165.27083889,0.000222,2]
[313598177,1707445866924,2000.0,0.00021637,2]
[313598178,1707445869058,244.7881671,0.00020698,2]
[313598179,1707445876609,159.74031969,0.00020696,2]
[313598180,1707445877695,222.75047052,0.000222,2]
[313598181,1707445895581,1163.55460316,0.00021984,2]
[313598182,1707445896253,1163.55460316,0.00022339,2]
[313598183,1707445903258,160.28300019,0.00022546,30]
[313598184,1707445911720,4688.7086,0.00022489,2]
[313598185,1707445913688,4000.0,0.00022339,2]
[313598186,1707445913712,2110.59861504,0.00022339,2]
[313598187,1707445917687,235.89103346,0.00022339,2]
[313598188,1707445921964,5213.59984836,0.00022339,2]
[313598189,1707445922379,155.0,0.00022339,2]
[313598190,1707445922973,1124.77586429,0.00022339,2]
[313598191,1707445923218,155.0,0.00022339,2]
[313598198,1707445924756,285.5102529,0.00022339,2]
[313598199,1707445929688,1714.4897471,0.00022339,2]
[313598200,1707445929709,4419.0878928,0.00022339,2]
[313598201,1707445935473,235.89103346,0.00022339,2]
[313598202,1707445939127,4511.1938,0.00022448,2]
[313598203,1707445939950,1076.15165427,0.00022339,2]
[313598204,1707445940512,157.37742344,0.00022339,2]
[313598205,1707445940574,203.31725651,0.00022339,2]
[313598206,1707445940984,1124.77586429,0.00022339,2]
[313598207,1707445944761,286.63348542,0.00022339,2]
[313598208,1707445951477,235.89103346,0.00022339,2]
[313598209,1707445955380,4347.9582,0.00022448,2]
[313598210,1707445958984,1124.77586429,0.00022339,2]
[313598211,1707445971632,235.89103346,0.00022339,2]
[313598212,1707445973754,-921.72105206,0.000285,120]
[313598213,1707445974893,332.61,0.00020211,2]
[313598214,1707445974980,1124.77586429,0.00022339,2]
[313598215,1707445975082,332.61,0.00022475,2]
[313598216,1707445991294,1124.77586429,0.00022339,2]
[313598217,1707445991487,235.89103346,0.00022339,2]
[313598218,1707445991520,172.16,0.00017533,2]
[313598219,1707445997263,23900.0,0.00021908,2]
[313598220,1707446004841,842.207,0.00022445,2]
[313598221,1707446007492,235.89103346,0.00022339,2]
[313598222,1707446012856,200.0,0.00021604,2]
[313598223,1707446012990,1124.77586429,0.00022339,2]
[313598224,1707446016892,1276.17178129,0.00022445,2]
[313598225,1707446022765,154.61636407,0.00022448,2]
[313598226,1707446025493,235.89103346,0.00022339,2]
[313598227,1707446030260,668.3,0.0002186,2]
[313598228,1707446030997,1124.77586429,0.00022339,2]
[313598229,1707446037181,159.75232504,0.00022441,2]
[313598230,1707446043716,235.89103346,0.00022339,2]
[313598231,1707446048991,1124.77586429,0.00022339,2]
[313598232,1707446059526,236.36548753,0.00022339,2]
[313598233,1707446064992,752.12144825,0.00022339,2]
[313598234,1707446127599,200.0,0.00021604,2]
[313598235,1707446129794,166.61,0.00022252,2]
[313598236,1707446143746,250.0,0.00021801,2]